bitfinex-derivatives/quotes_BTCF0:USTF0_20250803
["timestamp","ask_amount","ask_price","bid_price","bid_amount"]
[1754185988498,0.03139,113130.0,113120.0,1.0162004]
[1754185989304,0.008,113130.0,113120.0,1.27436395]
[1754185989998,0.3166874,113160.0,113150.0,0.1767935]
[1754185990189,0.11909,113160.0,113150.0,0.6553535]
[1754185990391,0.03844,113160.0,113150.0,0.91351705]
[1754185990595,0.02339,113160.0,113150.0,0.91351705]
[1754185991102,0.02939,113160.0,113150.0,0.91351705]
[1754185991297,0.02939,113160.0,113150.0,0.6553535]
[1754185991497,0.006,113160.0,113150.0,0.91351705]
[1754185991902,0.1827779,113160.0,113150.0,0.91351705]
[1754185992402,0.1867779,113160.0,113150.0,0.91351705]
[1754185992904,0.1827779,113160.0,113150.0,0.91351705]
[1754185993709,0.1827779,113160.0,113150.0,0.9223642]
[1754185994008,0.2061679,113160.0,113150.0,0.9223642]
[1754185995313,0.3018679,113160.0,113150.0,0.66420065]
[1754186002213,0.52542145,113160.0,113150.0,0.5863635]
[1754186002511,0.92083145,113160.0,113150.0,0.2579936]
[1754186002716,0.92083145,113160.0,113150.0,0.2719936]
[1754186002903,0.56003145,113160.0,113150.0,0.2719936]
[1754186007616,0.56003145,113160.0,113150.0,0.0952]
[1754186008317,0.56003145,113160.0,113150.0,0.2719937]
[1754186008616,0.3018679,113160.0,113150.0,0.2719937]
[1754186008814,0.3018679,113160.0,113150.0,0.6327937]
[1754186009117,0.2998679,113160.0,113150.0,0.6327937]
[1754186009519,0.2998679,113160.0,113150.0,0.91535725]
[1754186009718,0.2519379,113160.0,113150.0,0.91535725]
[1754186009915,0.1817779,113160.0,113150.0,0.91535725]
[1754186010120,0.2054679,113160.0,113150.0,0.91535725]
[1754186010421,0.1817779,113160.0,113150.0,0.91535725]
[1754186010614,0.2054679,113160.0,113150.0,0.91535725]
[1754186011019,0.2219479,113160.0,113150.0,0.91535725]
[1754186012119,0.2636079,113160.0,113150.0,0.91535725]
[1754186012922,0.2616079,113160.0,113150.0,0.91535725]
[1754186013616,0.2606079,113160.0,113150.0,0.91535725]
[1754186013817,0.2626079,113160.0,113150.0,0.91535725]
[1754186015419,0.2773279,113160.0,113150.0,0.91535725]
[1754186015724,0.2977879,113160.0,113150.0,0.6571937]
[1754186015921,0.2987879,113160.0,113150.0,0.6571937]
[1754186016323,0.2977879,113160.0,113150.0,0.6571937]
[1754186017023,0.2967879,113160.0,113150.0,0.6571937]
[1754186017326,0.2977879,113160.0,113150.0,0.6571937]
[1754186018527,0.2977879,113160.0,113150.0,0.91535725]
[1754186018715,0.55595145,113160.0,113150.0,0.2097037]
[1754186019320,0.55595145,113160.0,113150.0,0.09828]
[1754186019527,0.91675145,113160.0,113150.0,0.09828]
[1754186019726,0.55595145,113160.0,113150.0,0.2750736]
[1754186021128,0.55595145,113160.0,113150.0,0.2994736]
[1754186022432,0.55595145,113160.0,113150.0,0.2750736]
[1754186024328,0.2248236,113150.0,113140.0,0.7473294]
[1754186024528,0.2958036,113150.0,113140.0,0.7473294]
[1754186025624,0.2958036,113150.0,113140.0,0.7483294]
[1754186026030,0.55396715,113150.0,113140.0,0.45873]
[1754186026228,0.55396715,113150.0,113140.0,0.6355391]
[1754186027126,0.55396715,113150.0,113140.0,0.45873]
[1754186027338,0.55396715,113150.0,113140.0,0.3618]
[1754186027530,0.55396715,113150.0,113140.0,0.3608]
[1754186027833,0.55496715,113150.0,113140.0,0.3608]
[1754186028036,0.56367963,113150.0,113140.0,0.3608]
[1754186028335,0.56367963,113150.0,113140.0,0.5467391]
[1754186028542,0.56367963,113150.0,113140.0,0.6035191]
[1754186028736,0.56467963,113150.0,113140.0,0.6182191]
[1754186029137,0.92647963,113150.0,113140.0,0.2737391]
[1754186029338,0.56567963,113150.0,113140.0,0.2737391]
[1754186029836,0.56667963,113150.0,113140.0,0.2737391]
[1754186031352,0.56667963,113150.0,113140.0,0.09693]
[1754186031531,0.92747963,113150.0,113140.0,0.09693]
[1754186032546,0.66931608,113150.0,113140.0,0.09693]
[1754186032845,0.2958193,113140.0,113130.0,0.619855]
[1754186033039,0.55398285,113140.0,113130.0,0.634555]
[1754186033647,0.55398285,113140.0,113130.0,0.48213]
[1754186034041,0.55398285,113140.0,113130.0,0.658955]
[1754186034846,0.2968193,113140.0,113130.0,0.658955]
[1754186035541,0.2978193,113140.0,113130.0,0.658955]
[1754186037041,0.2958505,113120.0,113110.0,0.5376508]
[1754186037242,0.55401405,113120.0,113110.0,0.6589861]
[1754186037451,0.2958505,113120.0,113110.0,0.91714965]
[1754186037647,0.2170105,113120.0,113110.0,0.91714965]
[1754186038134,0.1768249,113130.0,113120.0,0.430795]
[1754186038337,0.1768249,113130.0,113120.0,1.04975855]
[1754186038847,0.2011449,113130.0,113120.0,1.04975855]
[1754186039546,0.2011449,113130.0,113120.0,1.05962996]
[1754186041252,0.2011449,113130.0,113120.0,1.01542016]
[1754186041851,0.2174049,113130.0,113120.0,1.01542016]
[1754186044050,0.2174049,113130.0,113120.0,1.00654875]
[1754186044259,0.2950749,113130.0,113120.0,0.7041774]
[1754186044451,0.2950749,113130.0,113120.0,0.71307602]
[1754186045155,0.2950749,113130.0,113120.0,0.97123957]
[1754186045855,0.2950749,113130.0,113120.0,0.71307602]
[1754186050658,0.2950749,113130.0,113120.0,0.97123957]
[1754186055458,0.2950749,113130.0,113120.0,0.7041774]
[1754186055662,0.2950749,113130.0,113120.0,0.71305986]
[1754186056662,0.2950749,113130.0,113120.0,0.7041774]
[1754186056975,0.2950749,113130.0,113120.0,0.7031774]
[1754186057570,0.2960749,113130.0,113120.0,0.7031774]
[1754186058280,0.2970749,113130.0,113120.0,0.7031774]
[1754186059273,0.50841845,113130.0,113120.0,0.6345705]
[1754186059478,0.55523845,113130.0,113120.0,0.6341605]
[1754186059980,0.55523845,113130.0,113120.0,0.6575305]
[1754186062279,0.55523845,113130.0,113120.0,0.5467705]
[1754186062580,0.55523845,113130.0,113120.0,0.5376405]
[1754186062774,0.55523845,113130.0,113120.0,0.1768405]
[1754186063181,0.55523845,113130.0,113120.0,0.2106205]
[1754186063873,0.2950904,113120.0,113110.0,0.3152194]
[1754186064077,0.55325395,113120.0,113110.0,0.3152194]
[1754186064674,0.55325395,113120.0,113110.0,0.3385894]
[1754186066783,0.55425395,113120.0,113110.0,0.3385894]
[1754186067683,0.5632184,113120.0,113110.0,0.3385894]
[1754186068873,0.5632184,113120.0,113110.0,0.2943786]
[1754186069581,0.55425395,113120.0,113110.0,0.2943786]
[1754186071884,0.55525395,113120.0,113110.0,0.2943786]
[1754186072785,0.55525395,113120.0,113110.0,0.6551786]
[1754186073192,0.55525395,113120.0,113110.0,0.2943786]
[1754186073488,0.55525395,113120.0,113110.0,0.6551786]
[1754186074091,0.2970904,113120.0,113110.0,0.6551786]
[1754186074591,0.2970904,113120.0,113110.0,0.2943786]
[1754186074788,0.2970904,113120.0,113110.0,0.6551786]
[1754186081087,0.55525395,113120.0,113110.0,0.6551786]
[1754186082685,0.2970904,113120.0,113110.0,0.6551786]
[1754186086989,0.2970904,113120.0,113110.0,0.91334215]
[1754186088492,0.2960904,113120.0,113110.0,0.91334215]
[1754186089993,0.2960904,113120.0,113110.0,0.6551786]
[1754186091693,0.2970904,113120.0,113110.0,0.6551786]
[1754186094393,0.2970904,113120.0,113110.0,0.2943786]
[1754186094994,0.1951004,113120.0,113110.0,0.2710086]
[1754186095296,0.55851395,113120.0,113110.0,0.2944086]
[1754186095798,0.3003504,113120.0,113110.0,0.2944086]
[1754186095996,0.55851395,113120.0,113110.0,0.2944086]
[1754186096794,0.3003504,113120.0,113110.0,0.6552086]
[1754186102505,0.55851395,113120.0,113110.0,0.6552086]
[1754186102699,0.3003504,113120.0,113110.0,0.6552086]
[1754186107408,0.12351,113120.0,113110.0,0.6552086]
[1754186107605,0.002,113120.0,113110.0,0.91337215]
[1754186108813,0.002,113120.0,113110.0,0.99263623]
[1754186110113,0.2167289,113130.0,113120.0,0.2238605]
[1754186110314,0.2167289,113130.0,113120.0,0.6582705]
[1754186111013,0.2607289,113130.0,113120.0,0.6582705]
[1754186111212,0.2981189,113130.0,113120.0,0.6582705]
[1754186111408,0.55728245,113130.0,113120.0,0.6582705]
[1754186111717,0.55728245,113130.0,113120.0,0.2974705]
[1754186112015,0.55828245,113130.0,113120.0,0.2974705]
[1754186124018,0.3001189,113130.0,113120.0,0.2974705]
[1754186124220,0.55828245,113130.0,113120.0,0.2974705]
[1754186126925,0.59053777,113130.0,113120.0,0.2974705]
[1754186131626,0.59053777,113130.0,113120.0,0.94868937]
[1754186136535,0.59053777,113130.0,113120.0,0.6582705]
[1754186139338,0.59053777,113130.0,113120.0,0.94868937]
[1754186143243,0.59053777,113130.0,113120.0,0.6582705]
[1754186143429,0.59053777,113130.0,113120.0,0.94868937]
[1754186143934,0.59053777,113130.0,113120.0,0.6582705]
[1754186145739,0.59053777,113130.0,113120.0,0.58788937]
[1754186146239,0.59053777,113130.0,113120.0,0.94868937]
[1754186147437,0.54218777,113130.0,113120.0,0.94868937]
[1754186147741,0.1788389,113130.0,113120.0,0.94868937]
[1754186148446,0.2013889,113130.0,113120.0,0.94868937]
[1754186149643,0.2003889,113130.0,113120.0,0.94868937]
[1754186150447,0.2013889,113130.0,113120.0,0.94868937]
[1754186151547,0.2166889,113130.0,113120.0,0.94868937]
[1754186151744,0.53109777,113130.0,113120.0,0.94868937]
[1754186151945,0.58473777,113130.0,113120.0,0.94868937]
[1754186154448,0.2943189,113130.0,113120.0,1.02795345]
[1754186155657,0.58473777,113130.0,113120.0,1.02795345]
[1754186157657,0.87515664,113130.0,113120.0,0.69875458]
[1754186157860,0.87515664,113130.0,113120.0,0.6328405]
[1754186158359,0.58473777,113130.0,113120.0,0.6328405]
[1754186159059,0.2943189,113130.0,113120.0,0.6328405]
[1754186159260,0.2943189,113130.0,113120.0,0.6553405]
[1754186159455,0.58473777,113130.0,113120.0,0.6553405]
[1754186161459,0.58473777,113130.0,113120.0,0.94575937]
[1754186162763,0.58473777,113130.0,113120.0,0.6553405]
[1754186162955,0.58473777,113130.0,113120.0,0.94575937]
[1754186166465,0.58473777,113130.0,113120.0,0.58495937]
[1754186167463,0.58473777,113130.0,113120.0,0.94575937]
[1754186171762,0.58473777,113130.0,113120.0,0.6553405]
[1754186175669,0.58473777,113130.0,113120.0,0.94575937]
[1754186175970,0.58473777,113130.0,113120.0,0.58495937]
[1754186176170,0.58473777,113130.0,113120.0,0.6553405]
[1754186176471,0.58473777,113130.0,113120.0,0.94575937]
[1754186177372,0.2943189,113130.0,113120.0,0.94575937]
[1754186177572,0.58473777,113130.0,113120.0,0.94575937]
[1754186188389,0.58473777,113130.0,113120.0,0.6553405]
[1754186188580,0.58473777,113130.0,113120.0,0.94575937]
[1754186193493,0.002,113130.0,113120.0,0.94575937]
[1754186193698,0.002,113130.0,113120.0,1.30655937]
[1754186197700,0.001,113130.0,113120.0,1.30655937]
[1754186197994,0.201778,113150.0,113140.0,0.2264693]
[1754186198199,1.03787307,113160.0,113150.0,0.2815336]
[1754186198397,1.03787307,113160.0,113150.0,0.58571247]
[1754186199398,1.03887307,113160.0,113150.0,0.58571247]
[1754186199593,0.67807307,113160.0,113150.0,0.94651247]
[1754186200904,0.68007307,113160.0,113150.0,0.94651247]
[1754186201705,0.68107307,113160.0,113150.0,0.94651247]
[1754186202302,0.68007307,113160.0,113150.0,0.94651247]
[1754186204306,0.68107307,113160.0,113150.0,0.94651247]
[1754186206208,0.3464566,113160.0,113150.0,0.94651247]
[1754186206506,0.63687547,113160.0,113150.0,0.94651247]
[1754186207409,0.63587547,113160.0,113150.0,0.94651247]
[1754186208213,0.63687547,113160.0,113150.0,0.94651247]
[1754186208411,0.63587547,113160.0,113150.0,0.94651247]
[1754186209214,0.63687547,113160.0,113150.0,0.94651247]
[1754186209806,0.2987666,113160.0,113150.0,0.94651247]
[1754186210113,0.1807903,113160.0,113150.0,0.94651247]
[1754186210316,0.004,113160.0,113150.0,0.94651247]
[1754186210809,0.180778,113160.0,113150.0,0.94651247]
[1754186211512,0.178778,113160.0,113150.0,0.94651247]
[1754186211715,0.177778,113160.0,113150.0,0.94651247]
[1754186211916,0.178778,113160.0,113150.0,0.94651247]
[1754186214123,0.203748,113160.0,113150.0,0.6560936]
[1754186214418,0.203748,113160.0,113150.0,0.94651247]
[1754186215422,0.203748,113160.0,113150.0,0.6560936]
[1754186215720,0.203748,113160.0,113150.0,0.94651247]
[1754186224328,0.219118,113160.0,113150.0,0.94651247]
[1754186224624,0.273908,113160.0,113150.0,0.94651247]
[1754186225332,0.295438,113160.0,113150.0,0.94651247]
[1754186228139,0.11866,113160.0,113150.0,0.94651247]
[1754186228322,0.05146,113160.0,113150.0,0.94651247]
[1754186229431,0.2282379,113160.0,113150.0,0.94651247]
[1754186230126,0.002,113160.0,113150.0,1.23693134]
[1754186230328,0.2243367,113180.0,113170.0,0.2954223]
[1754186230529,0.2558867,113180.0,113170.0,0.94664117]
[1754186231031,0.2700067,113180.0,113170.0,0.94664117]
[1754186231330,0.07914,113180.0,113170.0,0.94664117]
[1754186231527,0.08514,113180.0,113170.0,0.94664117]
[1754186231925,0.08514,113180.0,113170.0,1.01827294]
[1754186233138,0.2834167,113180.0,113170.0,1.01827294]
[1754186233334,0.2975367,113180.0,113170.0,1.01827294]
[1754186233933,0.58795557,113180.0,113170.0,1.01827294]
[1754186235235,0.2975367,113180.0,113170.0,1.01827294]
[1754186235629,0.2975367,113180.0,113170.0,1.37907294]
[1754186241830,0.2834167,113180.0,113170.0,1.37907294]
[1754186242543,0.2303367,113180.0,113170.0,1.37907294]
[1754186243043,0.0291,113180.0,113170.0,1.37907294]
[1754186243543,0.006,113180.0,113170.0,1.37907294]
[1754186249842,0.003,113180.0,113170.0,1.66949181]
[1754186250036,0.02454,113200.0,113190.0,0.2253011]
[1754186250244,0.02454,113200.0,113190.0,1.23892884]
[1754186250741,0.63147737,113210.0,113200.0,0.2972755]
[1754186250937,0.63147737,113210.0,113200.0,0.94849437]
[1754186252443,0.3410585,113210.0,113200.0,0.94849437]
[1754186252643,0.63147737,113210.0,113200.0,0.94849437]
[1754186252838,0.2208885,113210.0,113200.0,0.6580755]
[1754186253048,0.3420585,113210.0,113200.0,0.6580755]
[1754186254349,0.2218885,113210.0,113200.0,0.6335155]
[1754186254547,0.2481385,113210.0,113200.0,0.89127118]
[1754186254754,0.2608316,113210.0,113200.0,0.91583118]
[1754186255540,0.2022516,113210.0,113200.0,0.91583118]
[1754186256352,0.2186316,113210.0,113200.0,0.91583118]
[1754186259254,0.1777116,113210.0,113200.0,0.91583118]
[1754186260142,0.001,113210.0,113200.0,0.91583118]
[1754186261948,0.2453978,113220.0,113210.0,0.2252705]
[1754186262157,0.2453978,113220.0,113210.0,0.91581618]
[1754186263164,0.2627778,113220.0,113210.0,0.91581618]
[1754186263351,0.3273978,113220.0,113210.0,0.91581618]
[1754186263654,0.3420278,113220.0,113210.0,0.91581618]
[1754186266661,0.001,113220.0,113210.0,0.91581618]
[1754186271457,0.3851664,113240.0,113230.0,0.2252393]
[1754186271662,0.3851664,113240.0,113230.0,0.6580293]
[1754186271852,0.3851664,113240.0,113230.0,0.91578498]
[1754186272470,0.3861664,113240.0,113230.0,0.91578498]
[1754186272959,0.3420004,113240.0,113230.0,0.91578498]
[1754186273860,0.3410004,113240.0,113230.0,0.91578498]
[1754186274163,0.3420004,113240.0,113230.0,0.91578498]
[1754186274666,0.3420004,113240.0,113230.0,0.98578268]
[1754186275659,0.3420004,113240.0,113230.0,0.99477188]
[1754186276559,0.3420004,113240.0,113230.0,0.99577188]
[1754186277063,0.3420004,113240.0,113230.0,0.99477188]
[1754186277260,0.3410004,113240.0,113230.0,0.99477188]
[1754186278766,0.3420004,113240.0,113230.0,0.99477188]
[1754186280262,0.2218304,113240.0,113230.0,0.99477188]
[1754186280466,0.02285028,113240.0,113230.0,0.99477188]
[1754186280669,0.2006237,113240.0,113230.0,0.7370162]
[1754186280859,0.2006237,113240.0,113230.0,0.99477188]
[1754186280860,0.2971637,113240.0,113230.0,0.99477188]
[1754186283671,0.57679185,113240.0,113230.0,0.279377]
[1754186283871,0.57679185,113240.0,113230.0,0.0699977]
[1754186283872,0.93759185,113240.0,113230.0,0.0699977]
[1754186284070,0.1766693,113230.0,113220.0,0.6734731]
[1754186284271,0.2244993,113230.0,113220.0,0.7216531]
[1754186284472,0.2961793,113230.0,113220.0,0.7460231]
[1754186285976,0.2961793,113230.0,113220.0,0.7470231]
[1754186286975,0.55393498,113230.0,113220.0,0.001]
[1754186287276,0.55393498,113230.0,113220.0,0.1776849]
[1754186288375,0.91473498,113230.0,113220.0,0.1776849]
[1754186288577,0.55393498,113230.0,113220.0,0.1776849]
[1754186288770,0.2961793,113230.0,113220.0,0.2576049]
[1754186288977,0.2961793,113230.0,113220.0,0.6343249]
[1754186289179,0.2961793,113230.0,113220.0,0.2735249]
[1754186289673,0.2961793,113230.0,113220.0,0.2978949]
[1754186291076,0.2961793,113230.0,113220.0,0.2735249]
[1754186291275,0.55393498,113230.0,113220.0,0.2735249]
[1754186293479,0.55393498,113230.0,113220.0,0.2725249]
[1754186293776,0.55393498,113230.0,113220.0,0.2735249]
[1754186293973,0.56286905,113230.0,113220.0,0.2735249]
[1754186294475,0.56386905,113230.0,113220.0,0.001]
[1754186294980,0.66691337,113230.0,113220.0,0.001]
[1754186295178,0.92466905,113230.0,113220.0,0.001]
[1754186295480,0.2732249,113220.0,113210.0,0.7216764]
[1754186295681,0.2961949,113220.0,113210.0,0.7460464]
[1754186296581,0.2961949,113220.0,113210.0,0.7470464]
[1754186302981,0.2961949,113220.0,113210.0,0.3420718]
[1754186309090,0.2961949,113220.0,113210.0,0.7028718]
[1754186314193,0.3139123,113230.0,113220.0,0.2230748]
[1754186314395,0.3853123,113230.0,113220.0,0.91202048]
[1754186315494,0.3863123,113230.0,113220.0,0.91202048]
[1754186317692,0.3863123,113230.0,113220.0,0.6542648]
[1754186320305,0.3863123,113230.0,113220.0,0.2934648]
[1754186324307,0.40827601,113230.0,113220.0,0.2934648]
[1754186324806,0.3863123,113230.0,113220.0,0.6542648]
[1754186325108,0.40827569,113230.0,113220.0,0.6542648]
[1754186326216,0.3863123,113230.0,113220.0,0.6542648]
[1754186326514,0.32725522,113230.0,113220.0,0.91202048]
[1754186326704,0.3052923,113230.0,113220.0,0.91202048]
[1754186329916,0.3493623,113230.0,113220.0,0.91202048]
[1754186330215,0.3863123,113230.0,113220.0,0.91202048]
[1754186331008,0.3863123,113230.0,113220.0,0.6542648]
[1754186332511,0.3863123,113230.0,113220.0,0.91202048]
[1754186337722,0.3863123,113230.0,113220.0,0.6542648]
[1754186337924,0.3863123,113230.0,113220.0,0.91202048]
[1754186340228,0.3723723,113230.0,113220.0,0.91202048]
[1754186341529,0.3859523,113230.0,113220.0,0.91202048]
[1754186342238,0.3859523,113230.0,113220.0,0.6542648]
[1754186342829,0.3859523,113230.0,113220.0,0.94412271]
[1754186343633,0.67581021,113230.0,113220.0,0.6542648]
[1754186343831,0.67581021,113230.0,113220.0,0.94412271]
[1754186357841,0.3859523,113230.0,113220.0,0.94412271]
[1754186358148,0.67581021,113230.0,113220.0,0.94412271]
[1754186360540,0.67581021,113230.0,113220.0,0.58332271]
[1754186360846,0.67581021,113230.0,113220.0,0.94412271]
[1754186366355,0.67581021,113230.0,113220.0,0.6542648]
[1754186366556,0.67581021,113230.0,113220.0,0.58332271]
[1754186366850,0.67581021,113230.0,113220.0,0.47568271]
[1754186367057,0.2964148,113220.0,113210.0,1.03465461]
[1754186367257,0.87613062,113220.0,113210.0,0.04798]
[1754186367447,0.58627271,113220.0,113210.0,0.04798]
[1754186367656,0.58627271,113220.0,113210.0,0.08012]
[1754186367956,0.58627271,113220.0,113210.0,0.2568204]
[1754186368147,0.58627271,113220.0,113210.0,0.2707904]
[1754186368550,0.58627271,113220.0,113210.0,0.2717904]
[1754186368857,0.58627271,113220.0,113210.0,0.56164831]
[1754186369161,0.58627271,113220.0,113210.0,0.58602831]
[1754186370563,0.2964148,113220.0,113210.0,0.58602831]
[1754186370859,0.58627271,113220.0,113210.0,0.58602831]
[1754186371359,0.58627271,113220.0,113210.0,0.58502831]
[1754186372456,0.58727271,113220.0,113210.0,0.58502831]
[1754186377367,0.58727271,113220.0,113210.0,0.2951704]
[1754186377565,0.58727271,113220.0,113210.0,0.58502831]
[1754186380970,0.58727271,113220.0,113210.0,0.46655831]
[1754186381170,0.58727271,113220.0,113210.0,0.1767004]
[1754186381373,0.58727271,113220.0,113210.0,0.2099704]
[1754186381575,0.58727271,113220.0,113210.0,0.2191604]
[1754186381771,0.58727271,113220.0,113210.0,0.2555004]
[1754186382179,0.58727271,113220.0,113210.0,0.2720804]
[1754186382771,0.58727271,113220.0,113210.0,0.56193831]
[1754186384275,0.58727271,113220.0,113210.0,0.2964604]
[1754186384471,0.58727271,113220.0,113210.0,0.58631831]
[1754186387485,0.58727271,113220.0,113210.0,0.56193831]
[1754186388184,0.58727271,113220.0,113210.0,0.38523791]
[1754186388386,0.2960504,113210.0,113200.0,0.2580188]
[1754186388578,0.58590831,113210.0,113200.0,0.2720888]
[1754186388784,0.59452667,113210.0,113200.0,0.2720888]
[1754186389594,0.59452667,113210.0,113200.0,0.2730888]
[1754186389791,0.95532667,113210.0,113200.0,0.001]
[1754186391187,0.224396,113200.0,113190.0,0.2721109]
[1754186391388,0.58592391,113200.0,113190.0,0.09538]
[1754186391995,0.94672391,113200.0,113190.0,0.09538]
[1754186392592,0.94772391,113200.0,113190.0,0.09538]
[1754186394000,0.2960816,113190.0,113180.0,0.5855758]
[1754186394194,0.58593951,113190.0,113180.0,0.6329158]
[1754186394596,0.58593951,113190.0,113180.0,0.94715371]
[1754186395500,0.58593951,113190.0,113180.0,0.94815371]
[1754186395999,0.58593951,113190.0,113180.0,0.58735371]
[1754186396598,0.58593951,113190.0,113180.0,0.94815371]
[1754186396901,0.58593951,113190.0,113180.0,0.58735371]
[1754186397101,0.58593951,113190.0,113180.0,0.94815371]
[1754186399405,0.58593951,113190.0,113180.0,0.94813371]
[1754186400405,0.58593951,113190.0,113180.0,0.6582758]
[1754186400703,1.23659742,113190.0,113180.0,0.001]
[1754186402407,0.94673951,113190.0,113180.0,0.001]
[1754186402704,0.94673951,113190.0,113180.0,0.06442]
[1754186402901,0.94673951,113190.0,113180.0,0.07855]
[1754186403100,0.6568816,113190.0,113180.0,0.07855]
[1754186403496,0.94673951,113190.0,113180.0,0.07855]
[1754186404706,0.94673951,113190.0,113180.0,0.2552989]
[1754186404907,0.6568816,113190.0,113180.0,0.2712689]
[1754186405098,0.2483916,113190.0,113180.0,0.56112681]
[1754186405301,0.2750416,113190.0,113180.0,0.94628681]
[1754186405498,0.2601316,113190.0,113180.0,0.94628681]
[1754186406207,0.1767316,113190.0,113180.0,0.94628681]
[1754186406699,0.2209017,113200.0,113190.0,0.2946119]
[1754186406895,0.1767222,113200.0,113190.0,1.23512772]
[1754186407099,0.2875931,113220.0,113210.0,0.1767007]
[1754186407305,0.3687931,113220.0,113210.0,0.94523861]
[1754186407505,0.3837031,113220.0,113210.0,0.94523861]
[1754186408204,0.67356101,113220.0,113210.0,0.94523861]
[1754186408808,0.3837031,113220.0,113210.0,0.6553807]
[1754186409408,0.3847031,113220.0,113210.0,0.6553807]
[1754186410110,0.3837031,113220.0,113210.0,0.6553807]
[1754186410310,0.3847031,113220.0,113210.0,0.6553807]
[1754186419513,0.2218696,113220.0,113210.0,0.91308935]
[1754186419718,0.1776961,113220.0,113210.0,1.27388935]
[1754186421615,0.1776961,113220.0,113210.0,1.0161807]
[1754186421914,0.1776961,113220.0,113210.0,1.27388935]
[1754186422513,0.001,113220.0,113210.0,1.27388935]
[1754186425119,0.177685,113220.0,113210.0,1.27388935]
[1754186425817,0.176685,113220.0,113210.0,1.27488935]
[1754186426414,0.2875703,113230.0,113210.0,1.09818865]
[1754186426620,0.3033303,113230.0,113220.0,0.91307365]
[1754186427619,0.3372903,113230.0,113220.0,0.91307365]
[1754186427919,0.3372903,113230.0,113220.0,0.91407365]
[1754186428220,0.3466803,113230.0,113220.0,0.91407365]
[1754186429023,0.3025116,113230.0,113220.0,0.91407365]
[1754186429221,0.2149939,113230.0,113220.0,0.91407365]
[1754186429726,0.4255353,113240.0,113230.0,0.2948893]
[1754186429925,0.4255353,113240.0,113230.0,0.91339795]
[1754186430123,0.4255353,113240.0,113230.0,0.6556893]
[1754186430918,0.4265353,113240.0,113230.0,0.6556893]
[1754186432421,0.265998,113240.0,113230.0,0.6556893]
[1754186432619,0.2164555,113240.0,113230.0,0.91339795]
[1754186432818,0.2258955,113240.0,113230.0,0.6556893]
[1754186433016,0.2791255,113240.0,113230.0,0.6556893]
[1754186433220,0.2475155,113240.0,113230.0,0.91339795]
[1754186433728,0.2791255,113240.0,113230.0,0.91339795]
[1754186434625,0.2938055,113240.0,113230.0,0.91339795]
[1754186435129,0.2938055,113240.0,113230.0,0.6556893]
[1754186437525,0.91231415,113240.0,113230.0,0.03191]
[1754186437727,0.91231415,113240.0,113230.0,0.2408394]
[1754186437927,0.91231415,113240.0,113230.0,0.2948894]
[1754186438133,0.91231415,113240.0,113230.0,0.36605191]
[1754186439230,0.6546055,113240.0,113230.0,0.36605191]
[1754186447637,0.2938055,113240.0,113230.0,0.62376056]
[1754186448138,0.2938055,113240.0,113230.0,0.36605191]
[1754186450529,0.2938055,113240.0,113230.0,0.24783191]
[1754186450742,0.91231415,113240.0,113230.0,0.07116251]
[1754186451037,0.91231415,113240.0,113220.0,0.625816]
[1754186451038,0.2233593,113230.0,113220.0,0.720526]
[1754186451241,0.2928093,113230.0,113220.0,0.744036]
[1754186452136,0.2928093,113230.0,113220.0,0.383236]
[1754186452943,0.2928093,113230.0,113220.0,0.384236]
[1754186454139,0.2928093,113230.0,113220.0,0.745036]
[1754186454642,0.2928093,113230.0,113220.0,1.00274465]
[1754186456244,0.2928093,113230.0,113220.0,0.745036]
[1754186458643,0.1766693,113230.0,113220.0,1.00274465]
[1754186458842,0.3336952,113240.0,113230.0,0.2234093]
[1754186459147,0.3336952,113240.0,113230.0,0.91114795]
[1754186459148,0.1766655,113240.0,113230.0,0.91114795]
[1754186459543,0.1993455,113240.0,113230.0,0.91114795]
[1754186460041,0.2003455,113240.0,113230.0,0.6534393]
[1754186460242,0.2003455,113240.0,113230.0,0.91114795]
[1754186460948,0.2158555,113240.0,113230.0,0.91114795]
[1754186461348,0.2943655,113240.0,113230.0,0.6534393]
[1754186463842,0.2463655,113240.0,113230.0,0.91114795]
[1754186465150,0.2803755,113240.0,113230.0,0.91114795]
[1754186465852,0.2803755,113240.0,113230.0,0.98040905]
[1754186466549,0.1776655,113240.0,113230.0,0.98040905]
[1754186467355,0.001,113240.0,113230.0,0.98040905]
[1754186468956,0.1993197,113250.0,113240.0,0.2926238]
[1754186469147,0.1993197,113250.0,113240.0,0.91113245]
[1754186470456,0.2933397,113250.0,113240.0,0.91113245]
[1754186472262,0.2793497,113250.0,113240.0,0.91113245]
[1754186473162,0.2453397,113250.0,113240.0,0.91213245]
[1754186473366,0.2793497,113250.0,113240.0,0.91213245]
[1754186473567,0.2933397,113250.0,113240.0,0.91213245]
[1754186474768,0.2933397,113250.0,113240.0,0.6544238]
[1754186477571,0.2933397,113250.0,113240.0,0.91213245]
[1754186480572,0.2933397,113250.0,113240.0,0.6544238]
[1754186481572,0.2933397,113250.0,113240.0,0.91213245]
[1754186481873,0.264949,113260.0,113250.0,0.2233782]
[1754186482080,0.346259,113260.0,113250.0,0.55031685]
[1754186482268,0.287629,113260.0,113250.0,0.55031685]
[1754186482466,0.346259,113260.0,113250.0,0.55031685]
[1754186482679,0.381649,113260.0,113250.0,0.55031685]
[1754186482969,0.382649,113260.0,113250.0,0.55031685]
[1754186483568,0.2217896,113260.0,113250.0,0.55031685]
[1754186484076,0.2444696,113260.0,113250.0,0.55907021]
[1754186484570,0.2599796,113260.0,113250.0,0.55907021]
[1754186484768,0.2690896,113260.0,113250.0,0.55907021]
[1754186484978,0.3030996,113260.0,113250.0,0.55907021]
[1754186485175,0.2217896,113260.0,113250.0,0.55907021]
[1754186485373,0.1776308,113260.0,113250.0,0.91987021]
[1754186485573,0.001,113260.0,113250.0,0.91987021]
[1754186486673,0.7865832,113270.0,113260.0,0.2233627]
[1754186486881,0.7865832,113270.0,113260.0,0.2925927]
[1754186489576,0.4267832,113270.0,113260.0,0.2925927]
[1754186490378,0.3826284,113270.0,113260.0,0.2925927]
[1754186490977,0.3826284,113270.0,113260.0,0.55030135]
[1754186491178,0.3811384,113270.0,113260.0,0.2925927]
[1754186491677,0.2463191,113270.0,113260.0,0.91110135]
[1754186492079,0.2784091,113270.0,113260.0,0.91110135]
[1754186492276,0.2928291,113270.0,113260.0,0.91110135]
[1754186493876,0.2463072,113270.0,113260.0,0.91110135]
[1754186494276,0.0697,113270.0,113260.0,0.91110135]
[1754186494678,0.0483,113270.0,113260.0,0.91110135]
[1754186494878,0.2249072,113270.0,113260.0,0.91110135]
[1754186496075,0.2569972,113270.0,113260.0,0.91110135]
[1754186496287,0.2943572,113270.0,113260.0,0.91110135]
[1754186497882,0.2478472,113270.0,113260.0,0.91110135]
[1754186498274,0.2157972,113270.0,113260.0,0.91110135]
[1754186498479,0.1776072,113270.0,113260.0,0.91110135]
[1754186498674,0.001,113270.0,113260.0,0.91110135]
[1754186501077,0.38431,113310.0,113290.0,0.0139]
[1754186501283,0.67846307,113310.0,113300.0,0.35364865]